Cogmind - Beta 10.2 @@@ ROGUE MODE // 2021.02.28 @ 13:34:39 Player: Cookedpoo Result: Destroyed by D-53 Grenadier with Mini Grenade Launcher Performance ------------- Evolutions (0) 0 Regions Visited (2) 400 Robots Destroyed (24) 120 Value Destroyed (603) 603 Prototype IDs (4) 80 Alien Tech Used (0) 0 Bonus (0) 0 TOTAL SCORE: 1203 Bonus ------- None Cogmind --------- Core Integrity 0/250 Matter 286/300 Energy 280/280 System Corruption 0% Temperature Cool (58) Movement Walking (180) Ox2 Location -10/Mines Parts ------- > --- POWER (1) -------- Cooled Ion Engine > --- PROPULSION (2) --- Aluminum Leg Aluminum Leg > --- UTILITY (2) ------ Large Storage Unit Large Storage Unit > --- WEAPON (2) ------- Medium Laser Light Assault Rifle > --- INVENTORY (16) --- Cooled Ion Engine Aluminum Leg Large Storage Unit Transport Network Coupler Small Laser Assault Rifle Light Assault Rifle Light Assault Rifle Mini Grenade Launcher Mini Grenade Launcher Mini Grenade Launcher Mini Grenade Launcher Mini Grenade Launcher Mini Grenade Launcher Mini Grenade Launcher Peak State ------------ > --- POWER ------------ Cooled Ion Engine > --- PROPULSION ------- Aluminum Leg Aluminum Leg > --- UTILITY ---------- Heat Sink Large Storage Unit > --- WEAPON ----------- Medium Laser Mini Grenade Launcher > --- INVENTORY -------- Cooled Ion Engine Aluminum Leg Aluminum Leg Transport Network Coupler Small Laser Assault Rifle Light Assault Rifle Light Assault Rifle Light Assault Rifle Mini Grenade Launcher [Rating: 11] Favorites ----------- Power Cooled Ion Engine Engine Cooled Ion Engine Power Core Light Nuclear Core Propulsion Aluminum Leg Leg Aluminum Leg Utility Large Storage Unit Device Heat Sink Storage Large Storage Unit Weapon Medium Laser Energy Gun Medium Laser Ballistic Gun Light Assault Rifle Launcher Mini Grenade Launcher Build | -11 -10 -10 ------- Run | Scr Mat Min Slots Evolved . | . . . Power . | . . . Propulsion . | . . . Utility . | . . . Weapon . | . . . Parts Attached 36 | 6 29 1 Power 4 | 1 3 . Engine 3 | 1 2 . Core 1 | . 1 . Reactor . | . . . Propulsion 11 | 2 8 1 Treads . | . . . Leg 11 | 2 8 1 Wheel . | . . . Hover . | . . . Flight . | . . . Utility 5 | 1 4 . Device 1 | . 1 . Storage 4 | 1 3 . Processor . | . . . Hackware . | . . . Protection . | . . . Artifact . | . . . Weapon 16 | 2 14 . Energy Gun 11 | 2 9 . Energy Cannon . | . . . Ballistic Gun 2 | . 2 . Ballistic Cannon . | . . . Launcher 3 | . 3 . Special Weapon . | . . . Impact Weapon . | . . . Slashing Weapon . | . . . Piercing Weapon . | . . . Special Melee Weapon . | . . . Unidentified Prototypes 1 | . 1 . Parts Lost 8 | . 7 1 Power 2 | . 2 . Propulsion 2 | . 1 1 Utility . | . . . Weapon 4 | . 4 . Highest Loss Streak 2 | . 2 1 Average Slot Usage (%) 94 | . 93 100 Engine 12 | . 12 14 Leg 27 | . 27 28 Device 6 | . 7 . Storage 17 | . 15 28 Energy Gun 21 | . 22 14 Ballistic Gun 6 | . 4 14 Naked Turns . | . . . Heaviest Build 43 | 12 43 43 Greatest Support 20 | 20 20 20 Greatest Overweight (x) 2 | 2 2 2 Average Overweight (x) . | . . 2 Largest Inventory Capacity 16 | 6 16 16 Average Capacity 9 | 5 8 16 Most Carried 16 | 6 16 16 Average Carried 8 | 3 7 15 Final Capacity 16 | 6 16 16 Final Carried 16 | 6 16 15 Class Distribution -------------------- 83% | Mutant 16% | Scavenger-Mutant Dominant Class ---------------- Mutant | -10/Materials Mutant | -10/Mines Resources | -11 -10 -10 ----------- Run | Scr Mat Min Matter Collected 614 | 260 354 . Remotely . | . . . Salvage Created 828 | 72 756 . Parts 48 | . 48 . Haulers Intercepted . | . . . Recyclers Shooed 1 | . 1 . Parts Field Recycled . | . . . Retrieved Matter . | . . . Parts Self-Destructed . | . . . Prevented . | . . . Kills | -11 -10 -10 ------- Run | Scr Mat Min Combat Hostiles Destroyed 20 | . 20 . Guns 15 | . 15 . AOE 5 | . 5 . Classes Destroyed 4 | 1 3 . Recycler 2 | 1 1 . Operator 2 | . 2 . Swarmer 6 | . 6 . Grunt 14 | . 14 . Best Kill Streak 5 | 1 5 . Combat Bots Only 5 | . 5 . Max Kills in Single Turn 2 | 1 2 . Gunslinging . | . . . Exploded 2 | . 2 . Melee . | . . . Uniques/NPCs Destroyed . | . . . Combat | -11 -10 -10 -------- Run | Scr Mat Min Damage Taken 1106 | . 674 432 Core 259 | . 129 130 Absorbed by Shields . | . . . Core Remaining (%) 100 | 100 . . Volleys Fired 96 | 3 84 9 Largest 2 | 2 2 2 Hottest 100 | 90 100 70 Shots Fired 175 | 6 151 18 Gun 169 | 6 145 18 Cannon . | . . . Launcher 6 | . 6 . Special . | . . . Kinetic 13 | . 4 9 Thermal 132 | 6 117 9 Explosive 6 | . 6 . Electromagnetic 24 | . 24 . Robot Hit Streak 18 | 5 18 4 Robot Miss Streak 3 | . 3 2 Penetration Max . | . . . Secondary Targets 1 | . 1 . Max Gunslinging Chain 1 | . 1 . Shots Hit Robots 115 | 5 99 11 Core Hits 46 | 2 42 2 Critical Hits . | . . . Critical Kills . | . . . Critical Parts Destroyed . | . . . Melee Attacks . | . . . Impact . | . . . Slashing . | . . . Piercing . | . . . Sneak Attacks . | . . . Combat Hostiles . | . . . Follow-up Attacks . | . . . Damage Inflicted 1823 | 59 1658 106 Guns 1376 | 59 1211 106 Cannons . | . . . Explosions 447 | . 447 . Melee . | . . . Ramming . | . . . Kinetic 58 | . 14 44 Thermal 1108 | 59 987 62 Explosive 396 | . 396 . Electromagnetic 261 | . 261 . Impact . | . . . Slashing . | . . . Piercing . | . . . Highest Corruption . | . . . Average Corruption . | . . . Corruption Purged . | . . . Overload Shots . | . . . Overflow Damage . | . . . Projectiles . | . . . Explosions . | . . . Melee . | . . . Knockbacks . | . . . Impact . | . . . Kinetic . | . . . Secondary . | . . . Self-Inflicted Damage . | . . . Shots . | . . . Rammed . | . . . Targets Rammed . | . . . Kicked . | . . . Crushed . | . . . Highest Temperature 322 | 45 322 80 Average Temperature 84 | 24 90 38 Received Heat Transfer 327 | . 327 . Effects 2 | . 2 . Interference 2 | . 2 . Siege Activations . | . . . Robots Corrupted . | . . . Combat Hostiles . | . . . Parts Fried . | . . . Impact Corruptions . | . . . Robots Melted . | . . . Combat Hostiles . | . . . Parts Melted 4 | 2 2 . Heat Transferred 3010 | 161 2664 185 Parts Sabotaged . | . . . Parts Stolen . | . . . Parts Stripped . | . . . Power Chain Reactions 2 | . 2 . Missiles Intercepted . | . . . Alert | -11 -10 -10 ------- Run | Scr Mat Min Peak Influence 413 | 5 413 147 Initial 147 | . 3 147 Average 251 | 1 283 141 Maximum Alert Level 2 | . 2 . Low Security (%) 32 | 100 17 100 Level 1 64 | . 78 . Level 2 3 | . 4 . Level 3 . | . . . Level 4 . | . . . Level 5 . | . . . High Security . | . . . Max Security . | . . . Squads Dispatched 6 | . 6 . Investigation 4 | . 4 . Extermination . | . . . Reinforcement 2 | . 2 . Assault . | . . . Garrison . | . . . Intercept . | . . . Construction Impeded . | . . . Haulers Reinforced . | . . . Stealth | -11 -10 -10 --------- Run | Scr Mat Min Distress Signals 3 | . 3 . Communications Jammed . | . . . Distress Signals . | . . . Times Spotted 58 | . 56 2 Peak Tracking Total 5 | . 5 2 Tactical Retreats 12 | . 12 . Traps | -11 -10 -10 ------- Run | Scr Mat Min Traps Triggered 3 | . 3 . Indirectly . | . . . Trap Hack Attempts . | . . . Triggered . | . . . Disarmed 6 | . 6 . Reprogrammed . | . . . Reused . | . . . Traps Extracted . | . . . Installed . | . . . Triggered . | . . . Machines | -11 -10 -10 ---------- Run | Scr Mat Min Machines Disabled 1 | . 1 . Max in Single Turn 1 | . 1 . Machines Sabotaged . | . . . Garrisons Compromised . | . . . Overloaded Fab Kills . | . . . Fab Network Shutdowns . | . . . Hacking | -11 -10 -10 --------- Run | Scr Mat Min Machines Accessed 9 | . 9 . Terminals 6 | . 6 . Fabricators . | . . . Repair Stations 1 | . 1 . Recycling Units 2 | . 2 . Scanalyzers . | . . . Garrison Access . | . . . Total Hacks 29 | . 29 . Successful 17 | . 17 . Failed 11 | . 11 . Catastrophic 1 | . 1 . Database Lockouts 1 | . 1 . Manual 15 | . 15 . Terminals 21 | . 21 . Fabricators . | . . . Repair Stations 5 | . 5 . Recycling Units 3 | . 3 . Scanalyzers . | . . . Garrison Access . | . . . Terminal Hacks 8 | . 8 . Part Schematic 1 | . 1 . Prototype ID Bank 3 | . 3 . Locate Traps 1 | . 1 . Disarm Traps 1 | . 1 . Hauler Manifests 1 | . 1 . Zone Layout 1 | . 1 . Fabricator Hacks . | . . . Repair Station Hacks 4 | . 4 . Scan Component 2 | . 2 . Repair 2 | . 2 . Recycling Unit Hacks . | . . . Scanalyzer . | . . . Garrison Access Hacks . | . . . Unauthorized Hacks 5 | . 5 . Terminals 3 | . 3 . Track 1 | . 1 . Botnet 1 | . 1 . Operators 1 | . 1 . Fabricators . | . . . Repair Stations . | . . . Recycling Units 2 | . 2 . Tunnel 2 | . 2 . Scanalyzers . | . . . Garrison Access . | . . . Data Cores Recovered . | . . . Used . | . . . Hacking Detections 7 | . 7 . Full Trace Events 1 | . 1 . Feedback Events . | . . . Feedback Blocked . | . . . Robot Schematics Acquired . | . . . Robots Built . | . . . Matter . | . . . Time . | . . . Total Robot Build Rating . | . . . Part Schematics Acquired 1 | . 1 . Parts Built . | . . . Matter . | . . . Time . | . . . Total Part Build Rating . | . . . Parts Repaired 2 | . 2 . Time 52 | . 52 . Parts Recycled . | . . . Recycled Matter . | . . . Retrieved Matter . | . . . Retrieved Components . | . . . Parts Scanalyzed . | . . . Part Schematics Acquired . | . . . Parts Damaged . | . . . Bothacking | -11 -10 -10 ------------ Run | Scr Mat Min Used RIF Installer . | . . . Robots Hacked . | . . . Non-combat . | . . . Combat . | . . . Robot Hacks Applied . | . . . Relay Couplers Released . | . . . Robots Rewired . | . . . Allies Hacked . | . . . Hacks Repelled . | . . . Allies | -11 -10 -10 -------- Run | Scr Mat Min Total Allies 3 | . . 3 Largest Group 3 | . . 3 Highest-Rated Group 40 | . . 40 Highest-Rated Ally 16 | . . 16 Total Orders . | . . . Ally Attacks 3 | . . 3 Total Damage 35 | . . 35 Kills . | . . . Allies Corrupted . | . . . Allies Melted . | . . . Intel | -11 -10 -10 ------- Run | Scr Mat Min Robot Analysis Total . | . . . Derelict Logs Recovered 1 | . . 1 Drone Launches . | . . . Drone Recoveries . | . . . Exploration | -11 -10 -10 ------------- Run | Scr Mat Min Turns Passed 1880 | 89 1537 254 Spaces Moved 1006 | 57 832 117 Core 13 | 13 . . Treads . | . . . Legs 993 | 44 832 117 Wheels . | . . . Hover . | . . . Flight . | . . . Fastest Speed 50 | 50 120 180 Average Speed 144 | 115 141 180 Slowest Speed 180 | 150 180 180 Overloaded Moves . | . . . Propulsion Burnouts . | . . . Robots Hopped . | . . . Cave-ins Triggered . | . . . Exploration Rate (%) 44 | 6 96 32 Regions Visited 2 Branch Regions 1 Pre-discovered Areas 2 | . 2 . Known Exits Taken . | . . . Unknown Exits Taken 2 | 1 1 . Scrap Searched 1 | . . 1 Spaces Dug 6 | . 6 . Terrain Destroyed 52 | . 52 . Melee . | . . . Projectile . | . . . AOE 52 | . 52 . Terrain Rammed . | . . . Walls Destroyed . | . . . Machines Disabled . | . . . Actions | -11 -10 -10 --------- Run | Scr Mat Min Total 1264 | 71 1049 144 Wait 72 | . 55 17 Move 1004 | 56 831 117 Hop . | . . . Pick Up 35 | 6 29 . Fast Attach 18 | 6 12 . Attach 10 | . 9 1 Detach 2 | . 2 . Swap 9 | . 9 . Drop 18 | . 18 . Fire 96 | 3 84 9 Melee . | . . . Ram . | . . . Kick . | . . . Crush . | . . . Escape Stasis . | . . . Rewire . | . . . Trap . | . . . Miscellaneous . | . . . Route ------- -11/Scrapyard -10/Materials (discovered 4 exits: [*Mat x3] / [*Min]) -10/Mines (discovered 1 exit: [*Mat]) History --------- Turn | Location | Event 11 | -11/Scrapyard | Discovered new exit (range 15) 90 | -11/Scrapyard | Entered Materials 273 | -10/Materials | Discovered new exit (range 15) 316 | -10/Materials | Build established: Mutant 650 | -10/Materials | Discovered new exit (range 13) 653 | -10/Materials | Central database locked down 675 | -10/Materials | Core integrity fell below 50% 790 | -10/Materials | Repaired Transport Network Coupler 870 | -10/Materials | Repaired Lrg. Storage Unit 1053 | -10/Materials | Discovered new exit (range 10) 1383 | -10/Materials | Discovered new exit (range 13) 1627 | -10/Materials | Entered Mines 1719 | -10/Mines | Assembled infested the area 1720 | -10/Mines | Assisted by bots powering up and referring to "LRC-V3" 1724 | -10/Mines | Assisted by a Guerilla fighting off Assembled 1733 | -10/Mines | Learned 2 Materials zone layouts 1793 | -10/Mines | Discovered new exit (range 7) 1862 | -10/Mines | Core integrity fell below 20% 1881 | -10/Mines | Destroyed by D-53 Grenadier with Mini Grenade Launcher Last Messages --------------- 01711_ Found 38 Matter. 01711_ Found Com. Wheel. 01711_ Found 35 Matter. 01719_ ALERT: Infestation in the mines, dispatching Demolisher response squad. 01720_ Trooper 1a: "Hello LRC-V3. What is your command?" 01720_ Mercenary 1a: "Hello LRC-V3. What is your command?" 01720_ Trooper 1b: "Hello LRC-V3. What is your command?" 01724_ A derelict emerges from the shadows: "You need to get out of here! I've been tracking a group of Assembled to figure out where they're coming from, and they're closing on this area, come on!" 01733_ Acquired derelict log, extracted data. Data stored: Materials zone layouts (x2). 01750_ R-06 Scavenger collects Lgt. Nuclear Core. 01754_ R-06 Scavenger collects Particle Gun. 01793_ EXIT=FOUND 01848_ Trooper 1a destroyed. 01861_ The unstable cave ceiling collapses. 01869_ Aluminum Leg destroyed. 01874_ The unstable cave ceiling collapses. Map ----- +----------------------------------------------------+ | ???# ####??????# ##? | | ???# ##?????????# ## | | ???## ###??????????# # | | ????########????????????# | | ????????????????????????## | | ?????????????????????????## | | ?????????????????????????## # | | ??????#####?????????????## # | | ?????## ##???????????## | | ????## < #??????????##% | | ???## #????####?## | | ??## #???## ### | | ??# #????# | | ??# #?????# ## | | ??# ##????## #?## | | ??# #?????# !%= ##?## | | ??# ##????# #### | | ??# ###### ## | | ??## ## | | ???## # | | ??#### # | | ?## # ######### | | ## # % ##???????? | | # % ###????????? | | # =%* #??????????? | | # @ d #???????????? | | # #????????????? | | ?# ##????????????? | | ?# ###?????????????? | | ?# #??????????????? | | ?# #### #??????????????? | | ?## ##??## ##??????????????? | | ??###?????####???????????????? | | ?????????????????????????????? | | ?????????????????????????????? | | ?????????????????????????????? | | ?????????????????????????????? | | ?????????????????????????????? | | | | | | | | | | | | | | | | | | | | | | | | | +----------------------------------------------------+ Best States ------------- Heat Dissipation 35 Energy Generation 14 Energy Capacity 280 Matter Stores 300 Matter Capacity 300 Sight Range 16 Terrain Scan Density 10 Evasion (%) 40 Item Schematics ----------------- Hcp. Storage Unit | -10/Materials | Hacked Robot Schematics ------------------ None Fabricated ------------ Nothing Alien Tech Used ----------------- None Achievements -------------- None Challenges ------------ None Game ------ Seed QuantumHugeFrame Manual? 0 Play Time 00:13:27 Cumulative 110.6 hours Start 2021.02.28 @ 13:22:32 End 2021.02.28 @ 13:34:39 Sessions 1 Manual Loads 0 Difficulty Rogue Special Mode None Game No. 100 Rogue 100 Adventurer 0 Explorer 0 Win Type - Total 2 Types 2/0/0/0/0/0/0/0/0 Lore% 58 Gallery% 61 Achievement% 48 Wizard Run 0 Options --------- ASCII 1 Keyboard 1 Movement Arrows Keybinds 0 Fullscreen 2 Font 18/TerminusBold Map View 76x50 Tactical HUD 1 Map Filters NONE Filters NONE Steam 1 RUN: 642573d5-cdd8-4558-91d9-4eae0eb2d3f5